bitfinex-derivatives/quotes_SOLF0:USTF0_20250224
["timestamp","ask_amount","ask_price","bid_price","bid_amount"]
[1740405780219,191.0,158.28,158.14,1.9801]
[1740405781123,6.36370494,158.23,158.19,0.04371998]
[1740405781322,0.04360494,158.23,158.19,0.04371998]
[1740405781617,6.3206,158.21,158.19,0.04371998]
[1740405782019,0.04360494,158.23,158.1,1.8363]
[1740405782224,6.3219,158.18,158.1,8.1612]
[1740405782423,6.3219,158.18,158.1,1.8363]
[1740405783220,0.04058258,158.16,158.12,0.04376551]
[1740405783821,191.0,158.27,158.12,0.04376551]
[1740405784023,191.0,158.27,158.1,1.8363]
[1740405784222,6.3202,158.22,158.14,6.323]
[1740405785027,0.04120415,158.2,158.16,0.03992732]
[1740405786628,191.0,158.27,158.16,6.36232732]
[1740405786827,191.0,158.27,158.16,6.3224]
[1740405787231,6.32,158.23,158.16,6.3224]
[1740405787727,0.0482645,158.21,158.18,0.04007563]
[1740405788631,6.3189,158.26,158.18,0.04007563]
[1740405788837,6.3189,158.26,158.18,6.36177563]
[1740405789026,6.3189,158.26,158.19,3.8645]
[1740405789830,0.04539713,158.24,158.19,3.8645]
[1740405790532,78.59280519,158.34,158.19,3.8645]
[1740405790832,2.01,158.38,158.19,3.8645]
[1740405791227,1.8791,158.38,158.2,1.2642225]
[1740405791428,1.7075,158.45,158.21,10.24]
[1740405791429,133.47410603,158.43,158.21,10.24]
[1740405791628,133.47410603,158.43,158.3,6.3169]
[1740405791629,0.04853863,158.31,158.3,6.3169]
[1740405791828,6.3136,158.39,158.3,6.3169]
[1740405792230,6.3136,158.39,158.31,6.3165]
[1740405793027,6.3149,158.36,158.33,0.04008894]
[1740405793230,0.04329708,158.37,158.33,0.04008894]
[1740405794021,6.3152,158.35,158.33,0.04008894]
[1740405795824,0.04329708,158.37,158.33,0.04008894]
[1740405796027,6.3153,158.34,158.33,0.04008894]
[1740405796229,1.9765,158.36,158.33,0.04008894]
[1740405796629,6.3152,158.35,158.33,0.04008894]
[1740405797229,6.3153,158.34,158.33,0.04008894]
[1740405798030,0.04329708,158.37,158.33,0.04008894]
[1740405798229,6.315,158.35,158.33,0.04008894]
[1740405798432,0.04329708,158.37,158.33,0.04008894]
[1740405799121,6.3153,158.34,158.33,0.04008894]
[1740405800535,6.3153,158.34,158.33,8.894e-05]
[1740405800729,1.7028,158.36,158.24,8.1632]
[1740405801531,6.318,158.28,158.24,8.1632]
[1740405802037,6.3173,158.3,158.25,6.3189]
[1740405802335,0.04026731,158.28,158.25,6.3189]
[1740405802636,0.04026731,158.28,158.26,0.04350801]
[1740405802837,4.73920413,158.38,158.27,6.3178]
[1740405803138,1.7028,158.42,158.24,1.8441]
[1740405803337,106.01690603,158.42,158.24,1.8441]
[1740405803539,6.71501777,158.41,158.3,6.3167]
[1740405803938,0.04312396,158.37,158.34,0.04753261]
[1740405804238,6.3149,158.36,158.34,0.04753261]
[1740405804833,6.35742396,158.37,158.34,0.04753261]
[1740405805438,0.04312396,158.37,158.34,0.04753261]
[1740405807538,104.31410603,158.44,158.36,6.3143]
[1740405808037,104.31410603,158.44,158.32,1.9211]
[1740405808236,104.31410603,158.44,158.36,6.3143]
[1740405808538,1.9268,158.45,158.32,1.9211]
[1740405808739,0.04655767,158.42,158.38,0.04546684]
[1740405809140,6.3126,158.41,158.38,0.04546684]
[1740405809331,0.04655767,158.42,158.38,0.04546684]
[1740405809738,6.35885767,158.42,158.38,0.04546684]
[1740405810342,6.3126,158.41,158.38,0.04546684]
[1740405810541,0.04655767,158.42,158.38,0.04546684]
[1740405810939,6.3134,158.39,158.38,0.04546684]
[1740405811631,191.0,158.41,158.31,1.8447]
[1740405811834,209.92,158.4,158.25,1.8423]
[1740405812033,215.78814019,158.39,158.25,1.8423]
[1740405812241,1.12891485,158.38,158.25,1.8423]
[1740405812540,209.92,158.39,158.25,1.8423]
[1740405812736,11.9014,158.41,158.3,0.04287221]
[1740405812737,0.04592677,158.33,158.3,0.04287221]
[1740405813044,1.9356,158.37,158.25,1.8423]
[1740405813244,6.3165,158.31,158.3,0.04773165]
[1740405813741,0.03988196,158.33,158.24,10.2124]
[1740405813937,1.12887926,158.35,158.24,6.3193]
[1740405814138,1.12887926,158.35,158.21,1.8423]
[1740405814340,209.92,158.36,158.23,6.3194]
[1740405814643,1.1289006,158.35,158.21,1.8423]
[1740405815141,0.04217522,158.3,158.26,0.0422556]
[1740405816837,6.3174,158.29,158.26,0.0422556]
[1740405818940,6.35927522,158.3,158.26,0.0422556]
[1740405819145,0.04217522,158.3,158.26,0.0422556]
[1740405819541,6.35937522,158.3,158.26,6.3604556]
[1740405819738,0.04217522,158.3,158.26,0.0422556]
[1740405820237,0.04217522,158.3,158.27,6.3181]
[1740405820440,104.57220603,158.4,158.26,0.0422556]
[1740405820638,104.31410603,158.4,158.25,10.18]
[1740405820950,6.3135,158.39,158.25,10.18]
[1740405821447,104.31410603,158.4,158.34,6.315]
[1740405821648,104.31410603,158.4,158.25,10.18]
[1740405821649,0.04609501,158.34,158.3,0.04259753]
[1740405821849,104.31410603,158.4,158.25,10.18]
[1740405822041,104.31410603,158.4,158.3,0.04163174]
[1740405822243,0.04413543,158.34,158.25,10.18]
[1740405822545,104.31410603,158.4,158.35,6.3146]
[1740405823349,6.3126,158.41,158.35,6.3146]
[1740405823549,0.04654849,158.39,158.36,0.04103714]
[1740405828756,0.04654849,158.39,158.36,6.35543714]
[1740405830660,6.36004849,158.39,158.36,6.35543714]
[1740405831056,6.3142,158.37,158.36,0.04103714]
[1740405836668,0.04654849,158.39,158.28,1.9782]
[1740405836867,209.92,158.4,158.28,1.9782]
[1740405837463,6.3165,158.32,158.28,8.2956]
[1740405837669,191.0,158.4,158.28,1.9782]
[1740405837869,6.3155,158.34,158.31,6.3163]
[1740405838073,6.3155,158.34,158.32,0.04478323]
[1740405838662,0.0462287,158.36,158.32,0.04478323]
[1740405838867,6.315,158.35,158.32,0.04478323]
[1740405839271,6.3611287,158.36,158.32,0.04478323]
[1740405840175,0.0462287,158.36,158.32,0.04478323]
[1740405840675,6.315,158.35,158.32,0.04478323]
[1740405841571,6.3155,158.34,158.32,0.04478323]
[1740405841771,0.0462287,158.36,158.32,0.04478323]
[1740405842575,6.3608287,158.36,158.32,0.04478323]
[1740405843073,0.0462287,158.36,158.32,0.04478323]
[1740405843874,0.0462287,158.36,158.32,6.36088323]
[1740405844071,0.0462287,158.36,158.32,0.04478323]
[1740405844271,104.31410603,158.44,158.32,0.04478323]
[1740405844468,104.31410603,158.44,158.3,10.14]
[1740405845378,0.04296077,158.39,158.35,0.04773234]
[1740405845678,0.04296077,158.39,158.31,12.6329]
[1740405845976,0.04296077,158.39,158.38,6.3137]
[1740405846376,295.31410603,158.46,158.41,6.3126]
[1740405846675,104.31410603,158.46,158.36,3.7902]
[1740405847080,110.62490603,158.46,158.4,6.3128]
[1740405847278,6.3108,158.46,158.36,3.7902]
[1740405847575,0.04756628,158.45,158.41,0.04465113]
[1740405847776,0.04756628,158.45,158.41,6.35715113]
[1740405848378,0.04756628,158.45,158.41,0.04465113]
[1740405850675,0.04756628,158.45,158.41,6.35715113]
[1740405850884,0.04756628,158.45,158.41,0.04465113]
[1740405851275,6.35876628,158.45,158.41,0.04465113]
[1740405851470,0.04756628,158.45,158.41,0.04465113]
[1740405851677,0.04756628,158.45,158.32,1.9752]
[1740405851876,1.13216909,158.47,158.32,1.9752]
[1740405851877,220.06,158.44,158.32,1.9752]
[1740405852172,2.0824,158.43,158.32,1.9752]
[1740405852382,6.3132,158.4,158.32,1.9752]
[1740405852878,0.04225313,158.38,158.35,6.3149]
[1740405853176,0.04225313,158.38,158.34,0.04185607]
[1740405854781,6.3142,158.37,158.34,0.04185607]
[1740405854981,0.04225313,158.38,158.34,0.04185607]
[1740405855573,0.04225313,158.38,158.37,6.3142]
[1740405855780,1.7386,158.47,158.35,1.9551]
[1740405855981,104.31410603,158.44,158.35,1.9551]
[1740405856780,0.0414326,158.41,158.4,6.313]
[1740405856982,104.31410603,158.44,158.38,0.04437646]
[1740405858083,104.31410603,158.51,158.38,0.04437646]
[1740405858283,104.31410603,158.51,158.35,1.9551]
[1740405858483,104.31410603,158.51,158.43,0.04063137]
[1740405859485,104.31410603,158.51,158.44,6.3113]
[1740405860483,110.62270603,158.51,158.44,6.3113]
[1740405860984,6.3086,158.51,158.44,6.3113]
[1740405861487,6.3091,158.5,158.43,6.35233137]
[1740405861681,6.3091,158.5,158.43,6.3117]
[1740405861881,6.3091,158.5,158.45,0.04495187]
[1740405862079,6.3094,158.49,158.45,0.04495187]
[1740405863384,6.3098,158.48,158.45,0.04495187]
[1740405863986,6.3106,158.46,158.45,0.04495187]
[1740405864187,29.06,158.53,158.45,0.04495187]
[1740405864387,1.13184,158.52,158.45,0.04495187]
[1740405864783,1.13174314,158.51,158.45,0.04495187]
[1740405864983,29.06,158.53,158.45,0.04495187]
[1740405865183,6.3106,158.46,158.45,0.04495187]
[1740405865390,209.92,158.51,158.35,1.9551]
[1740405865585,0.04611205,158.47,158.35,1.9551]
[1740405865787,211.05138618,158.5,158.35,1.9551]
[1740405866085,209.92,158.5,158.35,1.9551]
[1740405866487,0.04117553,158.44,158.41,0.04780021]
[1740405867187,6.3122,158.42,158.41,0.04780021]
[1740405867786,0.04117553,158.44,158.41,0.04780021]
[1740405868385,0.04117553,158.44,158.42,6.3119]
[1740405868589,0.04117553,158.44,158.41,0.04780021]
[1740405869093,0.04117553,158.44,158.42,6.3118]
[1740405869690,0.04117553,158.44,158.41,6.36000021]
[1740405870896,0.04117553,158.44,158.42,6.312]
[1740405871701,0.04117553,158.44,158.41,0.04780021]
[1740405873000,6.35287553,158.44,158.41,0.04780021]
[1740405873402,0.04117553,158.44,158.41,0.04780021]
[1740405874394,6.35267553,158.44,158.41,0.04780021]
[1740405874799,6.3096,158.49,158.41,0.04780021]
[1740405875000,1.8781,158.52,158.35,1.9551]
[1740405875398,6.3104,158.47,158.42,6.3119]
[1740405875598,1.8781,158.52,158.38,10.12]
[1740405875798,1.8781,158.52,158.39,3.7335]
[1740405875999,6.3092,158.5,158.44,6.311]
[1740405876203,6.3092,158.5,158.39,3.7335]
[1740405876501,6.3092,158.5,158.45,0.04699119]
[1740405877101,6.3092,158.5,158.45,6.35789119]
[1740405878203,106.19220603,158.52,158.45,6.35789119]
[1740405878499,6.3095,158.49,158.45,6.35789119]
[1740405878710,1.8781,158.52,158.45,0.04699119]
[1740405879302,6.3096,158.49,158.45,6.35759119]
[1740405879503,6.3096,158.49,158.45,0.04699119]
[1740405880403,295.31410603,158.55,158.45,0.04699119]
[1740405880606,104.31410603,158.55,158.46,10.12]
[1740405880906,104.31410603,158.55,158.54,6.3074]
[1740405882798,104.31410603,158.55,158.53,6.3537067]
[1740405882999,104.31410603,158.55,158.53,0.0460067]
[1740405883706,6.3054,158.59,158.54,6.3074]
[1740405884106,316.12020603,158.64,158.53,0.0460067]
[1740405884308,0.3805,158.61,158.53,0.0460067]
[1740405884700,1.13164162,158.6,158.53,0.0460067]
[1740405885405,0.3805,158.61,158.53,0.0460067]
[1740405885597,6.3064,158.57,158.53,0.0460067]
[1740405885804,210.3005,158.61,158.53,0.0460067]
[1740405886003,1.13177879,158.6,158.53,0.0460067]
[1740405886602,6.3074,158.54,158.53,0.0460067]
[1740405886804,210.3005,158.61,158.53,0.0460067]
[1740405886996,20.05166565,158.6,158.31,69.93037177]
[1740405887196,1.13166565,158.59,158.42,5.6962]
[1740405887402,18.92,158.57,158.42,5.6962]
[1740405887704,23.79833224,158.56,158.42,5.6962]
[1740405887906,6.3083,158.52,158.42,5.6962]
[1740405888105,22.6668,158.56,158.42,5.6962]
[1740405888304,0.04156958,158.49,158.45,0.04429385]
[1740405888506,0.04156958,158.49,158.48,6.3094]
[1740405889303,1.9703,158.56,158.45,0.04716172]
[1740405889503,1.7765,158.6,158.42,5.6962]
[1740405889803,1.7765,158.6,158.43,12.6231]
[1740405890003,1.7765,158.6,158.54,6.3073]
[1740405890204,1.7765,158.6,158.44,12.6225]
[1740405890404,0.0224103,158.59,158.55,0.04509115]
[1740405890710,0.0224103,158.59,158.56,6.3063]
[1740405891111,0.0224103,158.59,158.55,0.04328198]
[1740405891810,0.0224103,158.59,158.55,6.34998198]
[1740405892011,0.0224103,158.59,158.55,0.04328198]
[1740405892412,0.0224103,158.59,158.56,6.3063]
[1740405893416,0.0224103,158.59,158.55,0.04328198]
[1740405893610,0.0224103,158.59,158.57,6.3062]
[1740405894311,0.0224103,158.59,158.55,0.04328198]
[1740405894915,0.0224103,158.59,158.58,6.3058]
[1740405898114,0.0224103,158.59,158.55,0.04328198]
[1740405898919,6.3066,158.56,158.51,6.3085]
[1740405899118,23.65152391,158.65,158.5,1.8716]
[1740405899317,1.13114325,158.64,158.5,1.8716]
[1740405899619,6.3072,158.55,158.5,6.3086]
[1740405900016,23.65152391,158.65,158.51,0.04642202]
[1740405900315,18.92,158.63,158.46,1.8471]
[1740405900518,1.13109704,158.62,158.46,1.8471]
[1740405900711,18.92,158.6,158.46,1.8471]
[1740405900917,213.87609704,158.59,158.46,1.8471]
[1740405901118,0.02341986,158.54,158.51,0.0413458]
[1740405902418,0.02341986,158.54,158.51,6.3496458]
[1740405903213,0.02341986,158.54,158.52,6.3081]
[1740405905019,0.02341986,158.54,158.53,6.3078]
[1740405905918,296.12990603,158.62,158.51,0.0413458]
[1740405906116,104.31410603,158.62,158.58,6.3056]
[1740405906312,6.3046,158.61,158.58,6.3056]
[1740405907217,6.3046,158.61,158.58,6.34855455]
[1740405907821,1.8501,158.64,158.58,0.04295455]
[1740405909418,8.1536,158.64,158.59,6.3053]
[1740405909617,1.8501,158.64,158.58,0.04295455]
[1740405910022,1.8501,158.64,158.49,10.12]
[1740405910318,1.12939366,158.63,158.46,1.8471]
[1740405910519,6.3028,158.66,158.6,6.3047]
[1740405910727,104.31410603,158.67,158.53,10.12]
[1740405910921,123.23410603,158.7,158.54,3.9433]
[1740405911224,0.04295455,158.64,158.6,6.35223264]
[1740405911424,0.04295455,158.64,158.6,6.3047]
[1740405911624,0.04295455,158.64,158.61,6.3046]
[1740405913727,6.3019,158.68,158.6,0.0480953]
[1740405913922,104.31410603,158.7,158.54,5.7694]
[1740405914231,104.31410603,158.72,158.55,1.26143172]
[1740405914424,110.61440603,158.72,158.66,6.3026]
[1740405914816,104.31410603,158.72,158.67,0.04466605]
[1740405915027,104.31410603,158.72,158.67,6.34676605]
[1740405916727,6.3,158.73,158.67,6.34676605]
[1740405917925,0.8163,158.76,158.67,0.04466605]
[1740405918125,6.3004,158.72,158.67,0.04466605]
[1740405919237,0.8163,158.76,158.67,0.04466605]
[1740405919530,1.13113114,158.75,158.67,0.04466605]
[1740405919725,6.3018,158.68,158.67,0.04466605]
[1740405920320,19.7363,158.76,158.62,6.3041]
[1740405920527,1.13122796,158.75,158.56,15.6588]
[1740405920729,211.05122796,158.75,158.56,15.6588]
[1740405920931,1.13122796,158.74,158.56,15.6588]
[1740405921229,191.0,158.75,158.56,15.6588]
[1740405921527,0.04367048,158.67,158.66,6.3023]
[1740405921730,6.3003,158.72,158.66,6.3023]
[1740405921937,0.04185085,158.68,158.66,6.3023]
[1740405922226,0.04185085,158.68,158.65,0.0473855]
[1740405922433,0.04185085,158.68,158.67,6.3022]
[1740405922731,104.31410603,158.78,158.65,0.0473855]
[1740405922933,6.2995,158.74,158.69,6.3013]
[1740405923234,104.31410603,158.78,158.64,10.12]
[1740405923428,6.2983,158.77,158.71,6.3003]
[1740405923928,6.2986,158.76,158.72,0.04330628]
[1740405925721,6.2983,158.77,158.72,0.04330628]
[1740405925922,6.2983,158.77,158.65,3.834]
[1740405926122,125.15410603,158.82,158.73,0.04775167]
[1740405926321,6.2976,158.79,158.73,0.04775167]
[1740405926620,125.15410603,158.82,158.73,0.04775167]
[1740405926826,1.13065988,158.81,158.73,0.04775167]
[1740405927022,106.23410603,158.82,158.73,0.04775167]
[1740405927428,104.31410603,158.82,158.73,0.04775167]
[1740405928027,336.06002743,158.84,158.73,0.04775167]
[1740405928028,141.58285372,158.84,158.73,0.04775167]
[1740405928222,141.58285372,158.84,158.66,1.9462]
[1740405928434,141.58285372,158.84,158.77,0.04270465]
[1740405928632,6.2978,158.78,158.66,1.9462]
[1740405928931,141.58285372,158.84,158.66,1.9462]
[1740405929137,0.2804,158.82,158.66,1.9462]
[1740405929340,1.1308937,158.81,158.73,0.04022748]
[1740405929634,6.3004,158.72,158.67,6.3022]
[1740405929838,209.92,158.79,158.66,1.9462]
[1740405930039,1.98463812,158.78,158.66,1.9462]
[1740405930236,12.1066,158.8,158.66,1.9462]
[1740405930433,10.1,158.8,158.66,8.03510145]
[1740405930741,0.04011302,158.75,158.74,6.2992]
[1740405930936,76.82781834,158.82,158.66,8.03510145]
[1740405930937,76.54741834,158.82,158.66,8.03510145]
[1740405931335,76.54741834,158.82,158.66,1.9462]
[1740405931734,76.54741834,158.82,158.76,6.2985]
[1740405932241,6.2968,158.81,158.77,0.04812581]
[1740405933132,6.2968,158.81,158.77,6.34622581]
[1740405933841,6.2968,158.81,158.77,0.04812581]
[1740405934037,6.2972,158.8,158.77,0.04812581]
[1740405935441,6.2968,158.81,158.77,0.04812581]
[1740405935837,0.8532,158.85,158.77,0.04812581]
[1740405936034,1.13042979,158.84,158.77,0.04812581]
[1740405936544,6.2957,158.84,158.77,0.04812581]
[1740405936745,1.8123,158.86,158.77,0.04812581]
[1740405937440,1.8123,158.86,158.8,6.2969]
[1740405937847,1.8123,158.86,158.81,0.04103039]
[1740405938047,6.2957,158.84,158.81,0.04103039]
[1740405938446,1.8123,158.86,158.81,0.04103039]
[1740405938646,6.2957,158.84,158.81,6.33743039]
[1740405938939,1.8123,158.86,158.81,0.04103039]
[1740405939141,0.8931,158.9,158.81,0.04103039]
[1740405939341,1.13015559,158.89,158.81,0.04103039]
[1740405939545,1.13015559,158.89,158.74,5.7399]
[1740405939546,1.13005726,158.9,158.74,5.7399]
[1740405939746,2.1446,158.91,158.83,0.048332]
[1740405939946,6.2941,158.88,158.84,6.2952]
[1740405940146,2.1446,158.91,158.83,0.048332]
[1740405940347,1.1300188,158.9,158.83,0.048332]
[1740405940550,6.295,158.86,158.83,0.048332]
[1740405940754,2.1446,158.91,158.83,0.048332]
[1740405941048,1.13002953,158.9,158.83,0.048332]
[1740405941445,6.2954,158.85,158.83,0.048332]
[1740405942652,2.1446,158.91,158.83,0.048332]
[1740405942847,6.2955,158.84,158.83,0.048332]
[1740405943245,21.0646,158.91,158.83,0.048332]
[1740405943446,6.2955,158.84,158.83,0.048332]
[1740405944250,6.2968,158.81,158.77,6.2979]
[1740405944451,21.0646,158.91,158.74,5.7399]
[1740405944651,1.13027977,158.9,158.74,5.7399]
[1740405944853,6.2962,158.83,158.8,6.297]
[1740405945353,6.34254315,158.83,158.8,6.33836061]
[1740405947558,6.34254315,158.83,158.8,0.04136061]
[1740405947950,0.04634315,158.83,158.8,0.04136061]
[1740405948549,0.04634315,158.83,158.81,6.2967]
[1740405949554,6.2949,158.86,158.82,6.2963]
[1740405950763,6.2956,158.84,158.82,0.04790813]
[1740405952154,30.887,158.91,158.82,0.04790813]
[1740405952361,1.13003972,158.9,158.82,0.04790813]
[1740405952664,6.2949,158.86,158.82,6.34410813]
[1740405956570,6.2952,158.85,158.82,0.04790813]
[1740405956866,30.887,158.91,158.82,0.04790813]
[1740405957072,1.13003909,158.9,158.74,5.7399]
[1740405957269,6.2961,158.83,158.74,5.7399]
[1740405957763,6.2961,158.83,158.79,6.2972]
[1740405957964,6.2953,158.85,158.79,6.2972]
[1740405958165,6.2953,158.85,158.82,0.04569229]
[1740405960671,18.92,158.85,158.74,5.7399]
[1740405960974,18.92,158.88,158.79,6.2973]
[1740405961169,1.12980385,158.87,158.79,6.2973]
[1740405961375,2.06630385,158.87,158.79,6.2973]
[1740405961578,0.9365,158.87,158.79,6.2973]
[1740405961775,6.2958,158.84,158.81,0.0431366]
[1740405962470,6.2963,158.82,158.81,0.0431366]
[1740405962775,0.04129076,158.85,158.74,5.7399]
[1740405962971,127.44577612,158.89,158.74,5.7399]
[1740405963176,127.44577612,158.89,158.75,12.5979]
[1740405963374,127.44577612,158.89,158.76,10.1]
[1740405963573,133.73957612,158.89,158.76,10.1]
[1740405963772,0.03997272,158.84,158.81,0.04183387]
[1740405964474,0.03997272,158.84,158.83,6.2959]
[1740405965067,0.03997272,158.84,158.81,0.04183387]
[1740405965878,6.2959,158.83,158.81,0.04183387]
[1740405966176,0.03997272,158.84,158.81,0.04183387]
[1740405966375,0.03997272,158.84,158.74,5.7399]
[1740405966572,18.92,158.86,158.74,1.8497]
[1740405966770,1.13004209,158.85,158.73,6.2997]
[1740405966968,1.13004209,158.85,158.7,3.6839]
[1740405967169,18.92,158.83,158.71,6.3005]
[1740405967475,0.04317069,158.79,158.75,0.04269611]
[1740405967675,6.2987,158.76,158.75,0.04269611]
[1740405968172,29.06317069,158.79,158.66,26.22388941]
[1740405968373,18.92,158.77,158.65,6.303]
[1740405968579,1.12968048,158.76,158.65,6.303]
[1740405968876,18.92,158.77,158.61,1.813]
[1740405969079,0.1825,158.75,158.61,1.813]
[1740405969275,6.3021,158.68,158.67,0.04477548]
[1740405970072,6.3033,158.65,158.6,26.22388941]
[1740405970268,0.04349572,158.71,158.6,26.22388941]
[1740405970571,0.04349572,158.71,158.58,3.7472]
[1740405970572,11.2293215,158.71,158.58,3.7472]
[1740405970777,6.3015,158.69,158.58,3.7472]
[1740405971181,0.0429077,158.65,158.62,0.04617109]
[1740405971679,110.61320603,158.75,158.62,0.04617109]
[1740405971878,104.31410603,158.75,158.61,10.1]
[1740405972472,104.31410603,158.75,158.62,1.26087504]
[1740405972678,104.31410603,158.76,158.62,1.26087504]
[1740405972976,6.141e-05,158.7,158.69,6.3014]
[1740405973378,104.31410603,158.76,158.74,6.2991]
[1740405975283,0.04510189,158.77,158.74,6.2991]
[1740405975478,0.04510189,158.77,158.73,0.04281883]
[1740405975683,192.9575,158.86,158.73,0.04281883]
[1740405975874,1.9575,158.86,158.7,1.9688]
[1740405976382,10.1,158.87,158.7,1.9688]
[1740405976683,20.0442,158.89,158.7,1.9688]
[1740405976884,0.04044242,158.8,158.79,6.2971]
[1740405977085,6.295,158.86,158.79,6.2971]
[1740405977284,0.04114675,158.81,158.79,6.2971]
[1740405977681,0.04653685,158.82,158.79,6.2971]
[1740405978288,0.04653685,158.82,158.78,0.04662493]
[1740405978484,0.04653685,158.82,158.78,6.34432493]
[1740405978686,0.04653685,158.82,158.78,0.04662493]
[1740405978885,0.04653685,158.82,158.58,116.55899494]
[1740405979082,209.92,158.81,158.58,116.07659494]
[1740405979277,6.2993,158.75,158.58,116.07659494]
[1740405979481,1.2127,158.8,158.58,116.07659494]
[1740405979680,1.12865612,158.79,158.68,6.3015]
[1740405979882,1.12865612,158.79,158.61,26.22388941]
[1740405980084,0.04204558,158.75,158.72,0.04143548]
[1740405980286,6.3012,158.7,158.65,6.3029]
[1740405980687,18.92,158.77,158.65,6.3029]
[1740405980886,1.1281558,158.76,158.61,26.22388941]
[1740405981087,191.0,158.78,158.61,26.22388941]
[1740405981494,0.04047106,158.71,158.68,0.04209092]
[1740405981681,0.04047106,158.71,158.61,26.22388941]
[1740405981887,0.04013845,158.68,158.64,0.04564528]
[1740405982084,6.2991,158.75,158.61,26.22388941]
[1740405982392,6.2991,158.75,158.6,1.9966]
[1740405982586,6.2986,158.77,158.6,1.9966]
[1740405982890,6.2986,158.77,158.6,3.25763404]
[1740405983095,104.31410603,158.81,158.6,3.25763404]
[1740405983395,6.2979,158.78,158.72,6.3002]
[1740405983892,0.04236829,158.77,158.73,0.04552337]
[1740405987796,0.04236829,158.77,158.75,6.2987]
[1740405988198,0.04236829,158.77,158.73,0.04552337]
[1740405988396,3.1018,158.86,158.73,0.04552337]
[1740405988704,1.8942,158.86,158.7,1.863]
[1740405989096,1.8942,158.86,158.79,6.2974]
[1740405989697,0.04015541,158.84,158.81,0.0436168]
[1740405991599,6.2963,158.82,158.81,0.0436168]
[1740405992105,6.2963,158.82,158.7,1.863]
[1740405992106,0.04015541,158.84,158.7,1.863]
[1740405992306,1.8942,158.86,158.76,6.2983]
[1740405992605,1.12999262,158.85,158.76,6.2983]
[1740405993106,0.04609446,158.82,158.79,0.04547574]
[1740405993706,6.2971,158.8,158.79,0.04547574]
[1740405995703,6.2971,158.8,158.7,1.863]
[1740405995704,6.298,158.78,158.7,1.863]
[1740405996100,6.298,158.78,158.73,6.2996]
[1740405996302,1.8942,158.86,158.7,1.863]
[1740405996507,6.2982,158.78,158.7,1.863]
[1740405996908,0.04210779,158.76,158.73,6.2996]
[1740405997510,0.04210779,158.76,158.72,0.04427015]
[1740405997903,6.299,158.75,158.72,0.04427015]
[1740405999914,6.2995,158.74,158.72,0.04427015]
[1740406000115,0.04210779,158.76,158.72,0.04427015]
[1740406000616,6.2998,158.73,158.72,0.04427015]
[1740406001505,6.2995,158.74,158.72,0.04427015]
[1740406001713,0.04210779,158.76,158.72,0.04427015]
[1740406002817,6.2998,158.73,158.72,0.04427015]
[1740406004311,6.2998,158.73,158.63,3.7574]
[1740406004312,1.8381,158.75,158.66,6.3025]
[1740406004512,18.92,158.73,158.6,1.26103404]
[1740406004712,1.12773421,158.72,158.6,1.26103404]
[1740406004914,18.92,158.67,158.53,5.6143]
[1740406005215,11.0856,158.74,158.52,26.22388941]
[1740406005216,18.92,158.65,158.52,26.22388941]
[1740406005520,0.04585453,158.62,158.58,5.239e-05]
[1740406006420,6.3054,158.59,158.58,5.239e-05]
[1740406006616,0.04585453,158.62,158.58,5.239e-05]
[1740406007521,18.92,158.7,158.58,5.239e-05]
[1740406007719,10.16,158.71,158.53,3.7364]
[1740406007920,10.16,158.71,158.61,6.3045]
[1740406008318,10.16,158.71,158.53,3.7364]
[1740406008319,6.3013,158.7,158.53,3.7364]
[1740406008724,0.04188875,158.63,158.62,6.304]
[1740406008918,104.31410603,158.69,158.62,6.304]
[1740406009219,110.61560603,158.69,158.62,6.304]
[1740406009421,104.31410603,158.69,158.62,6.304]
[1740406009621,104.31410603,158.69,158.61,1.8907]
[1740406009925,6.3026,158.66,158.59,6.3054]
[1740406010124,6.3026,158.66,158.63,0.04514125]
[1740406010518,6.34907232,158.67,158.63,0.04514125]
[1740406010719,0.04687232,158.67,158.63,0.04514125]
[1740406013922,6.3027,158.66,158.63,0.04514125]
[1740406014225,0.04687232,158.67,158.63,0.04514125]
[1740406015022,0.04687232,158.67,158.56,1.9944]
[1740406015223,3.12864787,158.68,158.56,1.9944]
[1740406015422,1.12844787,158.67,158.56,1.9944]
[1740406015627,1.12844787,158.67,158.58,6.3057]